[Event "Live Chess"]
[Site "Chess.com"]
[Date "2023.05.20"]
[Round "-"]
[White "wot-not"]
[Black "diana21strabt"]
[Result "1/2-1/2"]
[WhiteElo "1486"]
[BlackElo "1677"]
[TimeControl "300"]
[EndTime "13:09:27 PDT"]
[Termination "Game drawn - insufficient material"]

1. e4 {[%clk 0:04:56.8]} 1... d5 {[%clk 0:04:58.8]} 2. e5 {[%clk 0:04:53.5]}
2... c5 {[%clk 0:04:57.6]} 3. f4 {[%clk 0:04:53]} 3... Nc6 {[%clk 0:04:55.7]} 4.
Nf3 {[%clk 0:04:52.8]} 4... Bg4 {[%clk 0:04:54.6]} 5. d4 {[%clk 0:04:52.6]} 5...
e6 {[%clk 0:04:53.3]} 6. c3 {[%clk 0:04:50.4]} 6... cxd4 {[%clk 0:04:52.1]} 7.
cxd4 {[%clk 0:04:49.3]} 7... Qb6 {[%clk 0:04:51.2]} 8. Nc3 {[%clk 0:04:24.3]}
8... Bxf3 {[%clk 0:04:48.2]} 9. gxf3 {[%clk 0:04:13.4]} 9... Qxd4 {[%clk
0:04:46.8]} 10. Qb3 {[%clk 0:03:54.6]} 10... Bb4 {[%clk 0:04:41.1]} 11. Bb5
{[%clk 0:03:50.6]} 11... Bxc3+ {[%clk 0:04:35.1]} 12. bxc3 {[%clk 0:03:48.2]}
12... Qb6 {[%clk 0:04:33.6]} 13. Bxc6+ {[%clk 0:03:44.9]} 13... bxc6 {[%clk
0:04:32.7]} 14. Qxb6 {[%clk 0:03:39.2]} 14... axb6 {[%clk 0:04:30.5]} 15. Rg1
{[%clk 0:03:30.2]} 15... g6 {[%clk 0:04:28.7]} 16. Be3 {[%clk 0:03:25.8]} 16...
c5 {[%clk 0:04:21.8]} 17. Rb1 {[%clk 0:03:21.6]} 17... Rxa2 {[%clk 0:04:20.1]}
18. Rxb6 {[%clk 0:03:20.4]} 18... Ra1+ {[%clk 0:04:10.3]} 19. Kf2 {[%clk
0:03:17.9]} 19... Ra2+ {[%clk 0:04:08.3]} 20. Kg3 {[%clk 0:03:16.2]} 20... c4
{[%clk 0:03:57.9]} 21. Rgb1 {[%clk 0:02:50.8]} 21... Ra8 {[%clk 0:03:53.3]} 22.
Rb8+ {[%clk 0:02:41.6]} 22... Rxb8 {[%clk 0:03:51.5]} 23. Rxb8+ {[%clk
0:02:41.3]} 23... Kd7 {[%clk 0:03:48.4]} 24. Bc5 {[%clk 0:02:22.4]} 24... h5
{[%clk 0:03:43.3]} 25. Rf8 {[%clk 0:02:18]} 25... h4+ {[%clk 0:03:37.7]} 26. Kh3
{[%clk 0:02:13.4]} 26... Kc6 {[%clk 0:03:29.8]} 27. Bd6 {[%clk 0:02:11.7]} 27...
f6 {[%clk 0:03:18.7]} 28. Be7 {[%clk 0:01:56.5]} 28... fxe5 {[%clk 0:03:15.6]}
29. fxe5 {[%clk 0:01:54.7]} 29... Nxe7 {[%clk 0:03:05.3]} 30. Rxh8 {[%clk
0:01:53.5]} 30... Nf5 {[%clk 0:03:04.2]} 31. Rg8 {[%clk 0:01:42.3]} 31... d4
{[%clk 0:03:01.9]} 32. cxd4 {[%clk 0:01:31.3]} 32... Nxd4 {[%clk 0:03:00.2]} 33.
Rxg6 {[%clk 0:01:31.1]} 33... Kd5 {[%clk 0:02:58.7]} 34. Rg8 {[%clk 0:01:28.4]}
34... Nxf3 {[%clk 0:02:55.5]} 35. Rc8 {[%clk 0:01:16.9]} 35... Nxe5 {[%clk
0:02:38.1]} 36. Kxh4 {[%clk 0:01:14.4]} 36... Nc6 {[%clk 0:02:37]} 37. Ra8
{[%clk 0:01:07.7]} 37... c3 {[%clk 0:02:34.9]} 38. Ra1 {[%clk 0:01:04]} 38... e5
{[%clk 0:02:32]} 39. Kg5 {[%clk 0:01:02.4]} 39... e4 {[%clk 0:02:31]} 40. h4
{[%clk 0:01:01.7]} 40... e3 {[%clk 0:02:29.1]} 41. Kf4 {[%clk 0:01:00.4]} 41...
Kd4 {[%clk 0:02:27.3]} 42. h5 {[%clk 0:00:58.7]} 42... c2 {[%clk 0:02:17.5]} 43.
h6 {[%clk 0:00:55.8]} 43... Ne7 {[%clk 0:02:15.2]} 44. Rc1 {[%clk 0:00:44.5]}
44... Kd3 {[%clk 0:02:10.4]} 45. h7 {[%clk 0:00:40.7]} 45... e2 {[%clk
0:02:05.8]} 46. Kf3 {[%clk 0:00:36]} 46... Ng6 {[%clk 0:01:57.7]} 47. Kf2 {[%clk
0:00:30.9]} 47... Kd2 {[%clk 0:01:49.6]} 48. Ra1 {[%clk 0:00:30.1]} 48... Nf4
{[%clk 0:01:22]} 49. h8=Q {[%clk 0:00:28]} 49... Nd3+ {[%clk 0:01:20.2]} 50. Kg2
{[%clk 0:00:22.8]} 50... e1=N+ {[%clk 0:01:17.6]} 51. Kh2 {[%clk 0:00:19.6]}
51... c1=Q {[%clk 0:01:08.8]} 52. Qh6+ {[%clk 0:00:19.3]} 52... Kc2 {[%clk
0:01:06]} 53. Rxc1+ {[%clk 0:00:19]} 53... Nxc1 {[%clk 0:01:04.6]} 54. Qc6+
{[%clk 0:00:16.1]} 54... Kd1 {[%clk 0:01:03.4]} 55. Qxc1+ {[%clk 0:00:14.7]}
55... Kxc1 {[%clk 0:01:02.3]} 1/2-1/2

[Event "Live Chess"]
[Site "Chess.com"]
[Date "2023.05.20"]
[Round "-"]
[White "LodeshChess"]
[Black "HoarseyHorsey"]
[Result "0-1"]
[WhiteElo "1037"]
[BlackElo "1404"]
[TimeControl "300"]
[EndTime "13:09:31 PDT"]
[Termination "HoarseyHorsey won by checkmate"]

1. e4 {[%clk 0:04:57]} 1... c5 {[%clk 0:04:58.9]} 2. Nf3 {[%clk 0:04:55.6]} 2...
e6 {[%clk 0:04:57.9]} 3. b3 {[%clk 0:04:54.1]} 3... Nc6 {[%clk 0:04:54.7]} 4.
Bb2 {[%clk 0:04:51.8]} 4... d5 {[%clk 0:04:52]} 5. e5 {[%clk 0:04:50]} 5... g6
{[%clk 0:04:49.7]} 6. Bb5 {[%clk 0:04:46.4]} 6... Bg7 {[%clk 0:04:48.3]} 7. O-O
{[%clk 0:04:44.2]} 7... Ne7 {[%clk 0:04:46.2]} 8. Re1 {[%clk 0:04:34.9]} 8...
O-O {[%clk 0:04:34.3]} 9. d4 {[%clk 0:04:16.2]} 9... cxd4 {[%clk 0:04:32.3]} 10.
Nxd4 {[%clk 0:04:15.1]} 10... Nxd4 {[%clk 0:04:30.4]} 11. Bxd4 {[%clk
0:04:14.5]} 11... Nc6 {[%clk 0:04:29.3]} 12. Bb2 {[%clk 0:04:08.8]} 12... Qc7
{[%clk 0:04:23.5]} 13. Bxc6 {[%clk 0:03:57.6]} 13... bxc6 {[%clk 0:04:22.8]} 14.
Qe2 {[%clk 0:03:49.1]} 14... a5 {[%clk 0:04:08.3]} 15. a4 {[%clk 0:03:46.2]}
15... Ba6 {[%clk 0:04:00.6]} 16. Qg4 {[%clk 0:03:28.5]} 16... Rab8 {[%clk
0:03:50.8]} 17. Nd2 {[%clk 0:03:19.5]} 17... Rb4 {[%clk 0:03:45.2]} 18. Qg3
{[%clk 0:03:14]} 18... h5 {[%clk 0:03:20.4]} 19. Nf3 {[%clk 0:03:11.4]} 19...
Rg4 {[%clk 0:03:12]} 20. Qh3 {[%clk 0:02:55.4]} 20... Rb8 {[%clk 0:03:03.9]} 21.
Rad1 {[%clk 0:02:21]} 21... Rbb4 {[%clk 0:02:42]} 22. Rd4 {[%clk 0:02:19.8]}
22... Rgxd4 {[%clk 0:02:28.6]} 23. Bxd4 {[%clk 0:02:15.4]} 23... c5 {[%clk
0:02:24.7]} 24. Bb2 {[%clk 0:02:04.4]} 24... c4 {[%clk 0:02:06.9]} 25. Re3
{[%clk 0:01:50.8]} 25... cxb3 {[%clk 0:01:51.5]} 26. cxb3 {[%clk 0:01:47.1]}
26... Qb6 {[%clk 0:01:28.1]} 27. Nd2 {[%clk 0:01:13.3]} 27... Qc5 {[%clk
0:01:04.1]} 28. Rc3 {[%clk 0:00:49.9]} 28... Qd4 {[%clk 0:00:54.5]} 29. Rc8+
{[%clk 0:00:45.8]} 29... Kh7 {[%clk 0:00:51.9]} 30. Bxd4 {[%clk 0:00:44.6]}
30... Rxd4 {[%clk 0:00:49.5]} 31. Qe3 {[%clk 0:00:32.1]} 31... Bxe5 {[%clk
0:00:47.8]} 32. Ra8 {[%clk 0:00:19.5]} 32... Bb7 {[%clk 0:00:37.8]} 33. Rxa5
{[%clk 0:00:18.2]} 33... Bg7 {[%clk 0:00:35.3]} 34. g3 {[%clk 0:00:17.4]} 34...
Bc6 {[%clk 0:00:32.9]} 35. Ra6 {[%clk 0:00:16]} 35... Bd7 {[%clk 0:00:31.6]} 36.
Ra7 {[%clk 0:00:13.9]} 36... Bc6 {[%clk 0:00:31]} 37. Qf3 {[%clk 0:00:12.1]}
37... Rxd2 {[%clk 0:00:28.8]} 38. Qxf7 {[%clk 0:00:11.2]} 38... Kh6 {[%clk
0:00:26.2]} 39. Qxg7+ {[%clk 0:00:10.3]} 39... Kg5 {[%clk 0:00:26.1]} 40. Qh7
{[%clk 0:00:08.6]} 40... Rd1+ {[%clk 0:00:25.2]} 41. Kg2 {[%clk 0:00:06.2]}
41... d4+ {[%clk 0:00:25.1]} 42. Kh3 {[%clk 0:00:01.3]} 42... Rg1 {[%clk
0:00:24]} 43. Rg7 {[%clk 0:00:00.1]} 43... Bg2# {[%clk 0:00:23]} 0-1

[Event "Live Chess"]
[Site "Chess.com"]
[Date "2023.05.20"]
[Round "-"]
[White "LL220284LL"]
[Black "Fazer180"]
[Result "1-0"]
[WhiteElo "2401"]
[BlackElo "1747"]
[TimeControl "300"]
[EndTime "13:09:36 PDT"]
[Termination "LL220284LL won by resignation"]

1. Nf3 {[%clk 0:04:54.2]} 1... e6 {[%clk 0:04:59.9]} 2. b3 {[%clk 0:04:53.1]}
2... d5 {[%clk 0:04:58.7]} 3. Bb2 {[%clk 0:04:52.6]} 3... Nf6 {[%clk 0:04:57.3]}
4. e3 {[%clk 0:04:52]} 4... c5 {[%clk 0:04:55.2]} 5. d4 {[%clk 0:04:51.3]} 5...
Nc6 {[%clk 0:04:54.2]} 6. Bb5 {[%clk 0:04:49.7]} 6... a6 {[%clk 0:04:51.8]} 7.
Bxc6+ {[%clk 0:04:48]} 7... bxc6 {[%clk 0:04:51.7]} 8. O-O {[%clk 0:04:46.5]}
8... cxd4 {[%clk 0:04:48.1]} 9. Nxd4 {[%clk 0:04:45.6]} 9... Bb7 {[%clk
0:04:46.9]} 10. c4 {[%clk 0:04:43.6]} 10... c5 {[%clk 0:04:42.7]} 11. Ne2 {[%clk
0:04:40.9]} 11... Be7 {[%clk 0:04:39.3]} 12. cxd5 {[%clk 0:04:39.5]} 12... Qxd5
{[%clk 0:04:32.5]} 13. Nf4 {[%clk 0:04:36.6]} 13... Qd8 {[%clk 0:04:15.2]} 14.
Nc3 {[%clk 0:04:33.8]} 14... O-O {[%clk 0:04:13]} 15. Rc1 {[%clk 0:04:32.6]}
15... Nd5 {[%clk 0:04:04.9]} 16. Nfxd5 {[%clk 0:04:27.2]} 16... exd5 {[%clk
0:04:03.9]} 17. Na4 {[%clk 0:04:27.1]} 17... Rc8 {[%clk 0:04:01.3]} 18. Ba3
{[%clk 0:04:25.9]} 18... c4 {[%clk 0:03:50.7]} 19. Bxe7 {[%clk 0:04:23.1]} 19...
Qxe7 {[%clk 0:03:50]} 20. bxc4 {[%clk 0:04:15.4]} 20... Rxc4 {[%clk 0:03:44.1]}
21. Qb3 {[%clk 0:04:07]} 21... Rfc8 {[%clk 0:03:28.3]} 22. Rb1 {[%clk
0:04:00.4]} 22... Bc6 {[%clk 0:03:16]} 23. Nb6 {[%clk 0:03:54.6]} 23... Rb8
{[%clk 0:03:15]} 24. Nxd5 {[%clk 0:03:51.5]} 24... Qb7 {[%clk 0:02:56.8]} 25.
Ne7+ {[%clk 0:03:43.7]} 25... Kh8 {[%clk 0:02:50.5]} 26. Qxc4 {[%clk 0:03:36.3]}
26... Qxb1 {[%clk 0:02:48.3]} 27. Nxc6 {[%clk 0:03:35.3]} 27... Qb5 {[%clk
0:02:33.7]} 28. Qxb5 {[%clk 0:03:34]} 28... Rxb5 {[%clk 0:02:32.2]} 29. g4
{[%clk 0:03:28.9]} 29... Rb2 {[%clk 0:02:29.5]} 30. Ra1 {[%clk 0:03:27.8]} 30...
Kg8 {[%clk 0:02:24.6]} 31. a4 {[%clk 0:03:26.3]} 31... f6 {[%clk 0:02:23.8]} 32.
a5 {[%clk 0:03:25.5]} 32... Kf7 {[%clk 0:02:23.1]} 33. Nd4 {[%clk 0:03:24.2]}
33... g6 {[%clk 0:02:20.1]} 34. Rc1 {[%clk 0:03:23.1]} 34... Ra2 {[%clk
0:02:16.5]} 35. Rc5 {[%clk 0:03:22.3]} 35... Ke7 {[%clk 0:02:13.6]} 36. Rc7+
{[%clk 0:03:20.3]} 36... Kd6 {[%clk 0:02:12.3]} 37. Rc6+ {[%clk 0:03:19.6]}
37... Kd5 {[%clk 0:02:11]} 38. Rxa6 {[%clk 0:03:19.5]} 38... Ke4 {[%clk
0:02:08.1]} 39. Rxf6 {[%clk 0:03:17.9]} 39... Rxa5 {[%clk 0:02:05.4]} 40. Rf4+
{[%clk 0:03:16.8]} 40... Kd3 {[%clk 0:02:04.1]} 41. Kg2 {[%clk 0:03:16.1]} 41...
g5 {[%clk 0:01:59.3]} 42. Rf5 {[%clk 0:03:14.8]} 42... h6 {[%clk 0:01:58.6]} 43.
Rxa5 {[%clk 0:03:13.6]} 1-0

[Event "Live Chess"]
[Site "Chess.com"]
[Date "2023.05.20"]
[Round "-"]
[White "Doge_Dandolo"]
[Black "Tilbs_12"]
[Result "1-0"]
[WhiteElo "2018"]
[BlackElo "1560"]
[TimeControl "300"]
[EndTime "13:09:40 PDT"]
[Termination "Doge_Dandolo won by resignation"]

1. Nf3 {[%clk 0:04:57.7]} 1... Nf6 {[%clk 0:04:58.4]} 2. c4 {[%clk 0:04:57]}
2... c5 {[%clk 0:04:57.5]} 3. g3 {[%clk 0:04:54.4]} 3... Nc6 {[%clk 0:04:55.5]}
4. d4 {[%clk 0:04:53.3]} 4... cxd4 {[%clk 0:04:54.1]} 5. Nxd4 {[%clk 0:04:52]}
5... g6 {[%clk 0:04:53]} 6. Bg2 {[%clk 0:04:45.6]} 6... Bg7 {[%clk 0:04:51]} 7.
Nc3 {[%clk 0:04:45.1]} 7... O-O {[%clk 0:04:48.5]} 8. O-O {[%clk 0:04:44.5]}
8... Qc7 {[%clk 0:04:42.3]} 9. Bf4 {[%clk 0:04:40]} 9... d6 {[%clk 0:04:35.2]}
10. Rc1 {[%clk 0:04:35.8]} 10... a6 {[%clk 0:04:30.7]} 11. Bg5 {[%clk
0:04:27.8]} 11... e5 {[%clk 0:04:24]} 12. Bxf6 {[%clk 0:04:24.4]} 12... Bxf6
{[%clk 0:04:23.2]} 13. Nd5 {[%clk 0:04:23.1]} 13... Qd8 {[%clk 0:04:20.6]} 14.
Nc2 {[%clk 0:04:21.6]} 14... Bg7 {[%clk 0:04:14.9]} 15. Qd2 {[%clk 0:04:10]}
15... Be6 {[%clk 0:04:02.7]} 16. Rfd1 {[%clk 0:04:01.8]} 16... Re8 {[%clk
0:03:40.4]} 17. b4 {[%clk 0:03:56.6]} 17... Bf8 {[%clk 0:03:32.6]} 18. e3 {[%clk
0:03:48.7]} 18... Rb8 {[%clk 0:03:25.6]} 19. a4 {[%clk 0:03:45.8]} 19... Ne7
{[%clk 0:03:05.7]} 20. Nf6+ {[%clk 0:03:43.1]} 20... Kg7 {[%clk 0:03:01.8]} 21.
Nxe8+ {[%clk 0:03:40.8]} 21... Qxe8 {[%clk 0:03:00.9]} 22. Qxd6 {[%clk
0:03:38.3]} 22... Bxc4 {[%clk 0:02:50.9]} 23. Qxe5+ {[%clk 0:03:34]} 23... f6
{[%clk 0:02:47.9]} 24. Qc3 {[%clk 0:03:26.4]} 24... Be6 {[%clk 0:02:38.4]} 25.
Nd4 {[%clk 0:03:24.8]} 25... Nd5 {[%clk 0:02:30.1]} 26. Nxe6+ {[%clk 0:03:21.9]}
26... Qxe6 {[%clk 0:02:28.7]} 27. Bxd5 {[%clk 0:03:20]} 1-0

[Event "Live Chess"]
[Site "Chess.com"]
[Date "2023.05.20"]
[Round "-"]
[White "chekagain"]
[Black "blunderabit"]
[Result "0-1"]
[WhiteElo "814"]
[BlackElo "1878"]
[TimeControl "300"]
[EndTime "13:09:45 PDT"]
[Termination "blunderabit won by checkmate"]

1. e4 {[%clk 0:04:56.8]} 1... c5 {[%clk 0:04:57.9]} 2. Nf3 {[%clk 0:04:55]} 2...
d6 {[%clk 0:04:56.7]} 3. d4 {[%clk 0:04:53.8]} 3... cxd4 {[%clk 0:04:55.5]} 4.
Nxd4 {[%clk 0:04:53.7]} 4... Nf6 {[%clk 0:04:54.1]} 5. Bd3 {[%clk 0:04:50.9]}
5... Nc6 {[%clk 0:04:47.1]} 6. Be3 {[%clk 0:04:43.7]} 6... e5 {[%clk 0:04:42.5]}
7. Nxc6 {[%clk 0:04:41.8]} 7... bxc6 {[%clk 0:04:40.4]} 8. h3 {[%clk 0:04:41.5]}
8... Be6 {[%clk 0:04:22.6]} 9. Nc3 {[%clk 0:04:36.3]} 9... Be7 {[%clk
0:04:17.4]} 10. O-O {[%clk 0:04:21.2]} 10... O-O {[%clk 0:04:15.8]} 11. Be2
{[%clk 0:04:18.6]} 11... d5 {[%clk 0:04:10.4]} 12. exd5 {[%clk 0:04:16.2]} 12...
cxd5 {[%clk 0:04:08.8]} 13. g4 {[%clk 0:04:07]} 13... d4 {[%clk 0:04:03.8]} 14.
Bxd4 {[%clk 0:04:01.1]} 14... exd4 {[%clk 0:04:01.2]} 15. Nb5 {[%clk 0:03:58.8]}
15... Bc5 {[%clk 0:03:50.4]} 16. g5 {[%clk 0:03:54.3]} 16... Ne4 {[%clk
0:03:37.4]} 17. h4 {[%clk 0:03:43.9]} 17... a6 {[%clk 0:03:10.4]} 18. Na3 {[%clk
0:03:39.7]} 18... Bd5 {[%clk 0:02:54.6]} 19. Bd3 {[%clk 0:03:32.1]} 19... Qd7
{[%clk 0:02:44.9]} 20. Qh5 {[%clk 0:03:29.4]} 20... g6 {[%clk 0:02:35.3]} 21.
Qh6 {[%clk 0:03:25.1]} 21... Qg4+ {[%clk 0:02:27.9]} 22. Kh2 {[%clk 0:03:09.5]}
22... Bd6+ {[%clk 0:02:20.5]} 23. Kh1 {[%clk 0:03:08]} 23... Nxf2# {[%clk
0:02:14.1]} 0-1

[Event "Live Chess"]
[Site "Chess.com"]
[Date "2023.05.20"]
[Round "-"]
[White "FlyingChessKestrel13"]
[Black "Hacker_2009"]
[Result "1-0"]
[WhiteElo "2133"]
[BlackElo "1905"]
[TimeControl "300"]
[EndTime "13:09:45 PDT"]
[Termination "FlyingChessKestrel13 won by resignation"]

1. e4 {[%clk 0:04:57.4]} 1... c5 {[%clk 0:04:58.7]} 2. d4 {[%clk 0:04:56.5]}
2... cxd4 {[%clk 0:04:56.4]} 3. c3 {[%clk 0:04:55.7]} 3... dxc3 {[%clk
0:04:54.4]} 4. Nxc3 {[%clk 0:04:54.5]} 4... d6 {[%clk 0:04:51.5]} 5. Bc4 {[%clk
0:04:52.4]} 5... Nf6 {[%clk 0:04:48.5]} 6. e5 {[%clk 0:04:50.1]} 6... dxe5
{[%clk 0:04:46.3]} 7. Bxf7+ {[%clk 0:04:44.3]} 7... Kxf7 {[%clk 0:04:43.5]} 8.
Qxd8 {[%clk 0:04:42.6]} 8... Nc6 {[%clk 0:04:41.7]} 9. Qd1 {[%clk 0:04:40.2]}
9... Bg4 {[%clk 0:04:40.3]} 10. f3 {[%clk 0:04:38.4]} 10... Be6 {[%clk
0:04:37.5]} 11. Nge2 {[%clk 0:04:37.4]} 1-0

[Event "Live Chess"]
[Site "Chess.com"]
[Date "2023.05.20"]
[Round "-"]
[White "ViktorTheCoolBoy"]
[Black "JoshMcK"]
[Result "1/2-1/2"]
[WhiteElo "2510"]
[BlackElo "1579"]
[TimeControl "300"]
[EndTime "13:10:00 PDT"]
[Termination "Game drawn by agreement"]

1. e4 {[%clk 0:04:58.5]} 1... c6 {[%clk 0:04:58.2]} 2. c4 {[%clk 0:04:56.5]}
2... d5 {[%clk 0:04:58.1]} 3. cxd5 {[%clk 0:04:53.3]} 3... cxd5 {[%clk
0:04:56.6]} 4. exd5 {[%clk 0:04:52.5]} 4... g6 {[%clk 0:04:54.6]} 5. Nc3 {[%clk
0:04:50.6]} 5... Nf6 {[%clk 0:04:52.4]} 6. Nf3 {[%clk 0:04:49.1]} 6... Bg7
{[%clk 0:04:51.4]} 7. Bc4 {[%clk 0:04:47.5]} 7... O-O {[%clk 0:04:50]} 8. O-O
{[%clk 0:04:46.3]} 8... a6 {[%clk 0:04:48.8]} 9. a4 {[%clk 0:04:44.8]} 9... Bf5
{[%clk 0:04:45]} 10. Re1 {[%clk 0:04:41]} 10... Nbd7 {[%clk 0:04:41.5]} 11. d4
{[%clk 0:04:38.5]} 11... Nb6 {[%clk 0:04:39.7]} 12. Bb3 {[%clk 0:04:37.3]} 12...
Nfxd5 {[%clk 0:04:38]} 13. Ne5 {[%clk 0:04:34.5]} 13... Nxc3 {[%clk 0:04:32.9]}
14. bxc3 {[%clk 0:04:33.4]} 14... Bxe5 {[%clk 0:04:27.6]} 15. Rxe5 {[%clk
0:04:32]} 15... Qc7 {[%clk 0:04:19]} 16. Ba3 {[%clk 0:04:23.9]} 16... Rfe8
{[%clk 0:04:12.6]} 17. Qe1 {[%clk 0:04:20.4]} 17... e6 {[%clk 0:04:08.6]} 18. h4
{[%clk 0:04:10.6]} 18... Rac8 {[%clk 0:03:54.6]} 19. Rc1 {[%clk 0:04:06.2]}
19... Nd7 {[%clk 0:03:49.2]} 20. Re3 {[%clk 0:04:04]} 20... Nf6 {[%clk
0:03:47.6]} 21. f3 {[%clk 0:04:00.8]} 21... b5 {[%clk 0:03:40.9]} 22. g4 {[%clk
0:03:57.8]} 22... Bxg4 {[%clk 0:03:31.2]} 23. fxg4 {[%clk 0:03:56.4]} 23... Nxg4
{[%clk 0:03:31.1]} 24. Rg3 {[%clk 0:03:54.8]} 24... h5 {[%clk 0:03:26.8]} 25.
axb5 {[%clk 0:03:49.4]} 25... axb5 {[%clk 0:03:25.3]} 26. c4 {[%clk 0:03:44.9]}
26... bxc4 {[%clk 0:03:23.3]} 27. Rxc4 {[%clk 0:03:42.8]} 27... Qf4 {[%clk
0:03:20.2]} 28. Bc1 {[%clk 0:03:38.4]} 28... Qd6 {[%clk 0:03:16]} 29. Bb2 {[%clk
0:03:24.4]} 29... Rxc4 {[%clk 0:03:07.2]} 30. Bxc4 {[%clk 0:03:23.3]} 30... Rc8
{[%clk 0:03:03.2]} 31. Be2 {[%clk 0:03:21.8]} 31... Rc2 {[%clk 0:02:57.1]} 32.
Bxg4 {[%clk 0:03:19.9]} 32... Rxb2 {[%clk 0:02:55.7]} 33. Bxh5 {[%clk
0:03:04.4]} 33... Rb1 {[%clk 0:02:47.4]} 34. Rxg6+ {[%clk 0:02:58.3]} 34... fxg6
{[%clk 0:02:43.7]} 35. Qxb1 {[%clk 0:02:57.9]} 35... Qxd4+ {[%clk 0:02:32.5]}
36. Kf1 {[%clk 0:02:53.7]} 36... gxh5 {[%clk 0:02:12.9]} 37. Qg6+ {[%clk
0:02:51.7]} 37... Qg7 {[%clk 0:02:06.6]} 38. Qxe6+ {[%clk 0:02:49.6]} 38... Qf7+
{[%clk 0:02:05.6]} 39. Qxf7+ {[%clk 0:02:48.8]} 39... Kxf7 {[%clk 0:02:05.5]}
40. Kf2 {[%clk 0:02:47.9]} 40... Kf6 {[%clk 0:02:03.1]} 1/2-1/2

[Event "Live Chess"]
[Site "Chess.com"]
[Date "2023.05.20"]
[Round "-"]
[White "LozzaLoaf"]
[Black "matt1979"]
[Result "0-1"]
[WhiteElo "241"]
[BlackElo "1468"]
[TimeControl "300"]
[EndTime "13:10:00 PDT"]
[Termination "matt1979 won by checkmate"]

1. d4 {[%clk 0:04:59.6]} 1... e6 {[%clk 0:04:57]} 2. f3 {[%clk 0:04:57.9]} 2...
f5 {[%clk 0:04:55.3]} 3. e4 {[%clk 0:04:57.1]} 3... fxe4 {[%clk 0:04:53.3]} 4.
fxe4 {[%clk 0:04:56.1]} 4... Nf6 {[%clk 0:04:51.9]} 5. e5 {[%clk 0:04:54.1]}
5... Nd5 {[%clk 0:04:48.5]} 6. Nf3 {[%clk 0:04:48.1]} 6... g6 {[%clk 0:04:45.2]}
7. Bg5 {[%clk 0:04:47.2]} 7... Be7 {[%clk 0:04:43.3]} 8. h4 {[%clk 0:04:42.5]}
8... b6 {[%clk 0:04:37.7]} 9. Nc3 {[%clk 0:04:37.7]} 9... Nxc3 {[%clk 0:04:36]}
10. bxc3 {[%clk 0:04:36.5]} 10... Bb7 {[%clk 0:04:34.7]} 11. c4 {[%clk 0:04:35]}
11... O-O {[%clk 0:04:30.6]} 12. c5 {[%clk 0:04:32.5]} 12... Bxf3 {[%clk
0:04:25.7]} 13. gxf3 {[%clk 0:04:31]} 13... Bxg5 {[%clk 0:04:19.6]} 14. hxg5
{[%clk 0:04:29]} 14... Qxg5 {[%clk 0:04:18.3]} 15. Bd3 {[%clk 0:04:19.1]} 15...
Qg3+ {[%clk 0:04:15.4]} 16. Ke2 {[%clk 0:04:06.6]} 16... Qxf3+ {[%clk
0:04:12.9]} 17. Ke1 {[%clk 0:04:03.6]} 17... Qxh1+ {[%clk 0:04:10.8]} 18. Kd2
{[%clk 0:04:01.9]} 18... Qxd1+ {[%clk 0:04:08.8]} 19. Kxd1 {[%clk 0:04:00.9]}
19... Nc6 {[%clk 0:04:05.3]} 20. d5 {[%clk 0:03:58.8]} 20... exd5 {[%clk
0:04:03.1]} 21. cxb6 {[%clk 0:03:56.7]} 21... axb6 {[%clk 0:04:01.6]} 22. Kd2
{[%clk 0:03:55.1]} 22... Nxe5 {[%clk 0:03:59]} 23. Rg1 {[%clk 0:03:53]} 23...
Nxd3 {[%clk 0:03:57.3]} 24. cxd3 {[%clk 0:03:51.8]} 24... Rf2+ {[%clk
0:03:55.5]} 25. Ke3 {[%clk 0:03:49.5]} 25... Raxa2 {[%clk 0:03:51.5]} 26. Kd4
{[%clk 0:03:46.5]} 26... Rf5 {[%clk 0:03:46.5]} 27. Re1 {[%clk 0:03:40.9]} 27...
c5+ {[%clk 0:03:44.6]} 28. Ke3 {[%clk 0:03:37.7]} 28... Re5+ {[%clk 0:03:42.3]}
29. Kf3 {[%clk 0:03:33.1]} 29... Rxe1 {[%clk 0:03:40.7]} 30. d4 {[%clk
0:03:32.5]} 30... cxd4 {[%clk 0:03:37.8]} 31. Kf4 {[%clk 0:03:31.3]} 31... Re4+
{[%clk 0:03:36.3]} 32. Kf3 {[%clk 0:03:29.9]} 32... Ra3+ {[%clk 0:03:34.4]} 33.
Kf2 {[%clk 0:03:28.6]} 33... Rh4 {[%clk 0:03:27.1]} 34. Ke2 {[%clk 0:03:27.1]}
34... Rh2+ {[%clk 0:03:25.7]} 35. Kd1 {[%clk 0:03:25.9]} 35... Ra1# {[%clk
0:03:24.5]} 0-1

[Event "Live Chess"]
[Site "Chess.com"]
[Date "2023.05.20"]
[Round "-"]
[White "BritishIsles"]
[Black "Iggle-Piggle"]
[Result "1-0"]
[WhiteElo "2429"]
[BlackElo "1254"]
[TimeControl "300"]
[EndTime "13:10:13 PDT"]
[Termination "BritishIsles won by resignation"]

1. d4 {[%clk 0:04:56.9]} 1... e6 {[%clk 0:04:56.5]} 2. c4 {[%clk 0:04:55.5]}
2... f5 {[%clk 0:04:53.6]} 3. Nc3 {[%clk 0:04:54.2]} 3... Nf6 {[%clk 0:04:51]}
4. Qc2 {[%clk 0:04:53.1]} 4... Be7 {[%clk 0:04:44.4]} 5. h3 {[%clk 0:04:38.5]}
5... O-O {[%clk 0:04:39.7]} 6. g4 {[%clk 0:04:37.4]} 6... fxg4 {[%clk
0:04:16.5]} 7. hxg4 {[%clk 0:04:35.6]} 7... c6 {[%clk 0:04:07.8]} 8. g5 {[%clk
0:04:27]} 8... g6 {[%clk 0:04:02.1]} 9. gxf6 {[%clk 0:04:25.2]} 9... Bxf6 {[%clk
0:03:59.3]} 10. Nf3 {[%clk 0:04:23.5]} 10... d5 {[%clk 0:03:52.7]} 11. e4 {[%clk
0:04:21.8]} 11... Nd7 {[%clk 0:03:39.6]} 12. e5 {[%clk 0:04:11.5]} 12... Bg7
{[%clk 0:03:35]} 13. Ng5 {[%clk 0:04:06.4]} 13... Qe8 {[%clk 0:03:11.9]} 14.
Nxh7 {[%clk 0:03:47.8]} 14... Rf5 {[%clk 0:03:05.1]} 15. Bh3 {[%clk 0:03:45.9]}
15... Rh5 {[%clk 0:03:00.2]} 16. Ng5 {[%clk 0:03:42.1]} 16... Nb6 {[%clk
0:02:36.2]} 17. c5 {[%clk 0:03:38.7]} 17... Nc4 {[%clk 0:02:19.8]} 18. b3 {[%clk
0:03:36.9]} 18... Nxe5 {[%clk 0:02:15]} 19. dxe5 {[%clk 0:03:35.5]} 19... Bxe5
{[%clk 0:02:12.3]} 20. Bd2 {[%clk 0:03:22.6]} 20... Qf8 {[%clk 0:02:00.1]} 21.
O-O-O {[%clk 0:03:10]} 1-0